bitfinex-derivatives/quotes_SOLF0:USTF0_20251129
["timestamp","ask_amount","ask_price","bid_price","bid_amount"]
[1764433953789,3.05730206,137.19,137.17,5.24114498]
[1764433969508,3.05730206,137.19,137.17,3.1]
[1764433969705,3.05730206,137.19,137.17,5.24114498]
[1764433971020,3.05730206,137.19,137.18,3.26]
[1764433971224,8.39722255,137.19,137.18,3.26]
[1764433972319,5.38722255,137.19,137.18,3.26]
[1764433972526,0.04730206,137.19,137.18,3.26]
[1764433979022,6.76969083,137.23,137.2,3.26]
[1764433979232,5.34418644,137.22,137.2,3.26]
[1764433979425,6.76969083,137.26,137.2,3.26]
[1764433979619,12.29547058,137.28,137.2,3.26]
[1764433979620,5.26349899,137.27,137.2,3.26]
[1764433979814,3.25,137.27,137.2,3.26]
[1764433980021,3.25,137.27,137.22,0.05098146]
[1764433980324,0.05358516,137.25,137.24,2.14114498]
[1764433980625,0.05358516,137.25,137.24,5.40114498]
[1764433985426,3.30358516,137.25,137.24,5.40114498]
[1764433985829,0.05358516,137.25,137.24,5.40114498]
[1764433988540,0.05358516,137.25,137.24,3.26]
[1764433989339,3.30358516,137.25,137.22,0.05098146]
[1764433989635,3.30358516,137.25,137.2,3.26]
[1764433990536,0.05358516,137.25,137.24,3.26]
[1764433990737,0.04705695,137.26,137.24,3.26]
[1764433990937,0.05050594,137.26,137.25,6.60303413]
[1764434003347,3.25,137.3,137.27,3.01]
[1764434004448,3.2966059,137.3,137.27,3.05617423]
[1764434008444,3.2966059,137.3,137.27,0.04617423]
[1764434009248,8.5097293,137.29,137.27,0.04617423]
[1764434009449,3.25,137.28,137.27,0.04617423]
[1764434017058,8.51544948,137.28,137.27,0.04617423]
[1764434024764,3.25,137.27,137.24,6.5567]
[1764434024961,3.25,137.25,137.24,6.5567]
[1764434025164,8.51544948,137.25,137.24,6.5567]
[1764434025675,3.25,137.24,137.23,0.05353954]
[1764434029971,8.52024393,137.24,137.23,0.05353954]
[1764434030385,3.26,137.23,137.18,3.2]
[1764434030875,3.26,137.21,137.18,3.2]
[1764434031275,3.30828707,137.21,137.18,3.25594377]
[1764434031470,3.30828707,137.21,137.18,9.81554377]
[1764434035084,3.30828707,137.21,137.19,3.2]
[1764434036482,0.04828707,137.21,137.19,13.10193413]
[1764434036682,0.04828707,137.21,137.2,3.2]
[1764434043386,3.26,137.25,137.21,6.558]
[1764434043589,3.26,137.25,137.23,3.2]
[1764434044692,0.04588277,137.25,137.24,6.54303413]
[1764434050496,0.04588277,137.25,137.24,5.33904682]
[1764434069709,3.19588277,137.25,137.24,3.2]
[1764434069906,5.33492959,137.25,137.23,0.05508416]
[1764434070113,3.15,137.24,137.23,0.05508416]
[1764434070310,8.44071065,137.24,137.23,0.05508416]
[1764434082828,8.44071065,137.24,137.23,3.31508416]
[1764434084122,8.44071065,137.24,137.23,0.05508416]
[1764434084328,5.29071065,137.24,137.23,3.31508416]
[1764434084826,0.04588277,137.25,137.23,9.87198416]
[1764434085216,0.04588277,137.25,137.24,3.26]
[1764434085419,5.33599003,137.25,137.24,3.26]
[1764434087232,0.04588277,137.25,137.24,5.39904682]
[1764434093229,3.04,137.3,137.26,3.24]
[1764434093421,8.33099622,137.29,137.26,3.24]
[1764434093631,8.33099622,137.28,137.26,3.24]
[1764434093833,5.29099622,137.27,137.26,3.24]
[1764434094130,3.09142288,137.28,137.26,3.24]
[1764434105034,3.09142288,137.28,137.25,6.60328437]
[1764434105338,3.04,137.26,137.25,0.04728437]
[1764434105540,8.32515835,137.26,137.25,0.04728437]
[1764434112155,8.32515835,137.26,137.25,3.28728437]
[1764434114760,5.28515835,137.26,137.25,3.28728437]
[1764434114960,3.09142288,137.28,137.25,3.28728437]
[1764434115152,8.32762093,137.27,137.25,3.28728437]
[1764434115353,3.04,137.27,137.25,3.28728437]
[1764434115857,3.09142288,137.28,137.26,3.24]
[1764434116060,5.2881849,137.27,137.26,3.24]
[1764434116461,8.3281849,137.27,137.26,3.24]
[1764434116964,8.3281849,137.27,137.25,3.28728437]
[1764434117157,3.04,137.27,137.25,3.28728437]
[1764434117552,3.04,137.27,137.25,0.04728437]
[1764434120366,8.48080506,137.26,137.25,0.04728437]
[1764434121458,3.19,137.25,137.22,9.7176]
[1764434121761,3.19,137.25,137.22,6.5576]
[1764434122262,3.19,137.25,137.2,3.16]
[1764434122464,10.11307846,137.28,137.13,32.46631565]
[1764434122465,6.53338763,137.22,137.21,0.0475365]
[1764434122668,3.19,137.21,137.14,3.16]
[1764434122864,8.48110194,137.2,137.14,3.16]
[1764434123070,3.19,137.2,137.14,3.16]
[1764434123372,8.41707708,137.19,137.16,3.16]
[1764434123555,5.22707708,137.18,137.16,3.20634818]
[1764434123763,3.24030035,137.19,137.16,3.20634818]
[1764434123964,6.09553225,137.18,137.16,3.20634818]
[1764434124160,3.24030035,137.19,137.16,3.20634818]
[1764434124361,6.09311462,137.18,137.16,3.20634818]
[1764434124572,3.24030035,137.19,137.16,3.20634818]
[1764434124765,6.09311462,137.18,137.16,3.20634818]
[1764434124966,3.19,137.18,137.16,3.20634818]
[1764434125461,3.19,137.18,137.16,0.04634818]
[1764434125658,9.280354,137.17,137.16,0.04634818]
[1764434125859,9.280354,137.17,137.11,6.5628]
[1764434126069,3.19,137.15,137.11,9.7228]
[1764434126265,3.19,137.15,137.12,3.16]
[1764434126471,3.19,137.15,137.09,9.7239]
[1764434126671,3.19,137.15,137.1,3.16]
[1764434127363,3.23932362,137.14,137.11,3.19452555]
[1764434129569,3.23932362,137.14,137.11,0.03452555]
[1764434130155,3.23932362,137.14,137.11,3.19452555]
[1764434130760,0.04932362,137.14,137.11,3.19452555]
[1764434132465,0.04932362,137.14,137.12,3.34338763]
[1764434132671,0.04932362,137.14,137.13,3.16]
[1764434133369,3.19,137.19,137.13,3.16]
[1764434133770,3.19,137.19,137.15,3.16]
[1764434134461,11.81643387,137.23,137.16,0.04594303]
[1764434134462,3.23968098,137.18,137.16,0.04594303]
[1764434134662,3.24066719,137.18,137.16,0.04594303]
[1764434149368,3.24066719,137.18,137.16,3.08594303]
[1764434150579,8.31913387,137.24,137.18,3.04]
[1764434150783,3.06,137.24,137.21,3.04]
[1764434151180,3.06,137.24,137.21,9.598]
[1764434151584,3.06,137.24,137.21,3.04]
[1764434151786,3.10870879,137.24,137.21,3.09042082]
[1764434153484,3.10870879,137.24,137.22,3.04]
[1764434153681,0.04870879,137.24,137.22,3.04]
[1764434154675,0.04870879,137.24,137.22,12.94088763]
[1764434155888,0.04870879,137.24,137.22,6.38338763]
[1764434158896,0.04870879,137.24,137.22,3.04]
[1764434168499,0.04870879,137.24,137.22,9.5976]
[1764434168696,0.04870879,137.24,137.23,3.04]
[1764434172611,0.04870879,137.24,137.23,5.17969854]
[1764434174205,0.04870879,137.24,137.23,3.04]
[1764434182128,5.24969854,137.29,137.25,3.2]
[1764434182319,14.24831426,137.28,137.25,3.2]
[1764434182515,5.86214895,137.27,137.25,3.2]
[1764434182729,3.11,137.28,137.25,3.2]
[1764434182928,5.86215106,137.27,137.25,3.2]
[1764434183125,0.05188448,137.27,137.25,3.25464143]
[1764434183319,0.05188448,137.27,137.26,3.2]
[1764434188428,5.86226069,137.29,137.26,3.2]
[1764434188633,24.49156,137.31,137.28,3.2]
[1764434188834,24.49156,137.31,137.3,3.2]
[1764434190730,1.65241689,137.31,137.3,3.2]
[1764434190933,1.689e-05,137.31,137.3,3.2]
[1764434191527,8.38716365,137.36,137.31,3.2]
[1764434191728,14.24945697,137.35,137.31,3.2]
[1764434191930,5.86229332,137.34,137.31,3.2]
[1764434192133,3.11,137.35,137.31,3.2]
[1764434192332,5.86158996,137.34,137.31,3.2]
[1764434192532,0.04935705,137.34,137.31,3.24898727]
[1764434192730,3.15935705,137.34,137.31,0.04898727]
[1764434193325,3.15935705,137.34,137.31,3.24898727]
[1764434199644,0.04935705,137.34,137.31,3.24898727]
[1764434200045,0.04935705,137.34,137.32,3.2]
[1764434201438,0.04935705,137.34,137.33,3.2]
[1764434202336,0.04935705,137.34,137.33,5.33969854]
[1764434208045,3.11,137.39,137.36,3.2]
[1764434208252,8.95425195,137.4,137.36,3.2]
[1764434208449,3.11,137.4,137.36,3.2]
[1764434209042,0.05137396,137.39,137.37,0.05486093]
[1764434209245,0.05137396,137.39,137.37,3.25486093]
[1764434211952,3.16137396,137.39,137.37,0.05486093]
[1764434218059,5.24969854,137.38,137.37,0.05486093]
[1764434218360,11.08842019,137.38,137.37,0.05486093]
[1764434218658,5.24969854,137.38,137.37,0.05486093]
[1764434219658,3.16137396,137.39,137.37,3.25486093]
[1764434220761,8.99859185,137.39,137.37,3.25486093]
[1764434221050,8.99858978,137.39,137.37,3.25486093]
[1764434221259,3.11,137.38,137.37,0.05486093]
[1764434223162,8.95222487,137.38,137.37,0.05486093]
[1764434227158,14.20990699,137.38,137.37,0.05486093]
[1764434230065,3.11,137.37,137.32,3.2]
[1764434230267,3.11,137.35,137.32,3.2]
[1764434231162,3.16223896,137.35,137.32,3.25579046]
[1764434231758,0.05223896,137.35,137.32,3.25579046]
[1764434232165,0.05223896,137.35,137.34,3.2]
[1764434237664,5.27560241,137.39,137.36,3.2]
[1764434237863,5.75574029,137.38,137.37,3.2]
[1764434238065,9.87969083,137.42,137.37,3.2]
[1764434238265,14.14216758,137.41,137.37,3.2]
[1764434238567,11.03216758,137.4,137.37,3.2]
[1764434238770,11.03216758,137.39,137.37,3.24983691]
[1764434238970,0.04909678,137.4,137.37,3.24983691]
[1764434239173,5.75609234,137.39,137.37,3.24983691]
[1764434239377,3.13909678,137.4,137.38,3.14]
[1764434239575,5.75600883,137.39,137.38,3.14]
[1764434244174,0.04909678,137.4,137.38,3.14]
[1764434244869,3.33909678,137.4,137.38,3.14]
[1764434247070,3.29,137.38,137.37,0.04983691]
[1764434247270,14.32374456,137.38,137.37,0.04983691]
[1764434256080,3.29,137.37,137.31,6.5532]
[1764434256279,3.29,137.35,137.31,9.5932]
[1764434256872,3.29,137.35,137.32,3.04]
[1764434257077,3.33688724,137.35,137.32,3.09213198]
[1764434257384,0.04688724,137.35,137.32,9.64493198]
[1764434257583,0.04688724,137.35,137.33,3.04]
[1764434259380,0.04688724,137.35,137.34,3.04]
[1764434259580,5.78187843,137.35,137.34,3.04]
[1764434261486,0.04688724,137.35,137.34,3.04]
[1764434267897,3.33688724,137.35,137.33,9.5923]
[1764434268295,3.33688724,137.35,137.32,0.05213198]
[1764434268495,3.33688724,137.35,137.32,3.09213198]
[1764434273694,3.33688724,137.35,137.33,3.2]
[1764434275199,0.04688724,137.35,137.33,9.7523]
[1764434275703,0.04688724,137.35,137.34,3.2]
[1764434277103,0.04688724,137.35,137.34,6.5376336]
[1764434277297,5.26256681,137.39,137.34,6.5376336]
[1764434277490,10.99671961,137.38,137.36,3.2]
[1764434277694,3.15,137.4,137.36,3.2]
[1764434278005,10.99794474,137.39,137.36,3.2]
[1764434278296,3.15,137.4,137.36,9.7506]
[1764434278500,3.15,137.4,137.37,3.2]
[1764434278501,10.9579619,137.39,137.37,3.2]
[1764434278702,0.0545004,137.39,137.37,3.2]
[1764434279810,0.0545004,137.39,137.37,9.7504]
[1764434280108,0.0545004,137.39,137.38,3.2]
[1764434280310,5.31828344,137.39,137.38,3.2]
[1764434281006,0.0545004,137.39,137.38,3.2]
[1764434283718,0.0045004,137.39,137.38,6.5376336]
[1764434291515,3.15,137.44,137.4,3.2]
[1764434292527,0.0489089,137.43,137.41,3.24748496]
[1764434293328,3.1989089,137.43,137.41,3.24748496]
[1764434294518,0.0489089,137.43,137.41,3.24748496]
[1764434294919,3.1989089,137.43,137.41,3.24748496]
[1764434296518,3.1989089,137.43,137.41,5.38153855]
[1764434297229,0.0489089,137.43,137.42,3.2]
[1764434305026,3.2089089,137.43,137.41,9.57598496]
[1764434305221,0.0489089,137.43,137.42,2.98]
[1764434305621,0.0489089,137.43,137.42,5.11405359]
[1764434310638,3.2689089,137.43,137.41,0.04748496]
[1764434313240,3.2689089,137.43,137.38,2.13405359]
[1764434313431,3.22,137.41,137.36,2.13405359]
[1764434313631,3.22,137.41,137.36,5.31405359]
[1764434314334,2.13405359,137.42,137.37,0.0458857]
[1764434314335,3.22,137.39,137.37,0.0458857]
[1764434314538,3.27411262,137.39,137.37,0.05427066]
[1764434320246,2.13405359,137.38,137.33,3.18]
[1764434320445,3.22,137.37,137.33,3.18]
[1764434320851,3.22,137.37,137.32,11.86685359]
[1764434321036,3.22,137.37,137.33,3.18]
[1764434321341,3.27103822,137.36,137.34,0.05048575]
[1764434321538,3.27103822,137.36,137.34,3.23048575]
[1764434322048,0.05103822,137.36,137.34,3.23048575]
[1764434328450,0.05103822,137.36,137.34,9.78248575]
[1764434328651,0.05103822,137.36,137.35,3.18]
[1764434339766,0.05103822,137.36,137.35,5.31405359]
[1764434340755,0.05103822,137.36,137.34,6.60248575]
[1764434341067,0.05103822,137.36,137.35,3.06]
[1764434342166,3.04,137.41,137.37,3.06]
[1764434342362,3.04,137.41,137.38,5.19405359]
[1764434343152,3.04,137.41,137.38,5.24030254]
[1764434343153,3.0867481,137.41,137.38,5.24030254]
[1764434346555,0.0467481,137.41,137.39,3.06]
[1764434347157,0.0467481,137.41,137.4,5.19405359]
[1764434352371,3.0867481,137.41,137.38,0.04624895]
[1764434352776,3.04,137.39,137.38,0.04624895]
[1764434354378,13.91799695,137.39,137.38,0.04624895]
[1764434356981,13.91799695,137.39,137.35,9.6113]
[1764434357183,3.04,137.38,137.35,3.06]
[1764434357372,10.87398318,137.37,137.33,3.06]
[1764434357575,3.04,137.36,137.33,3.06]
[1764434358083,3.08670175,137.36,137.33,3.11096103]
[1764434362281,3.08670175,137.36,137.33,0.05096103]
[1764434362676,3.08670175,137.36,137.33,3.14096103]
[1764434363985,0.04670175,137.36,137.35,3.09]
[1764434371388,3.23,137.42,137.38,3.19]
[1764434371685,10.88553264,137.41,137.38,3.19]
[1764434371988,10.88553264,137.4,137.38,3.19]
[1764434372182,3.23,137.42,137.38,3.19]
[1764434372383,14.16841521,137.41,137.39,3.23592063]
[1764434372584,10.88599553,137.4,137.39,3.23592063]
[1764434373089,3.28241968,137.41,137.39,3.23592063]
[1764434373287,3.28241968,137.41,137.39,0.04592063]
[1764434373692,14.11667621,137.4,137.39,0.04592063]
[1764434378997,8.48657284,137.4,137.39,0.04592063]
[1764434379198,3.23,137.4,137.39,0.04592063]
[1764434379396,8.4882036,137.4,137.39,0.04592063]
[1764434380290,3.23,137.4,137.39,0.04592063]
[1764434381303,3.28241968,137.41,137.39,3.23592063]
[1764434392819,0.05241968,137.41,137.39,9.78542063]
[1764434393016,0.05241968,137.41,137.4,3.0]
[1764434395207,3.17241968,137.41,137.39,0.04592063]
[1764434396320,3.17241968,137.41,137.39,3.04592063]
[1764434400622,0.05241968,137.41,137.4,3.0]
[1764434405823,3.17241968,137.41,137.39,0.04592063]
[1764434411828,0.05241968,137.41,137.39,3.04592063]
[1764434412436,0.05241968,137.41,137.4,3.0]
[1764434412636,6.76674101,137.46,137.4,3.0]
[1764434412824,14.01644399,137.45,137.4,3.0]
[1764434413133,10.89644399,137.44,137.4,3.0]
[1764434413329,10.89644399,137.43,137.41,3.0]
[1764434413532,3.12,137.45,137.41,3.0]
[1764434413834,10.93895486,137.44,137.43,3.0]
[1764434416030,0.04799484,137.44,137.43,3.0]
[1764434417524,3.16799484,137.44,137.42,0.04756232]
[1764434418026,3.16799484,137.44,137.42,3.04756232]
[1764434421932,3.16799484,137.44,137.42,0.04756232]
[1764434424636,0.04799484,137.44,137.43,3.31]
[1764434426038,3.32799484,137.44,137.42,3.35756232]
[1764434426239,3.32799484,137.44,137.42,0.04756232]
[1764434430445,14.12736985,137.43,137.42,0.04756232]
[1764434430647,8.52735164,137.43,137.42,0.04756232]
[1764434431347,14.12453663,137.43,137.42,0.04756232]
[1764434432048,10.84453663,137.43,137.42,3.35756232]
[1764434432447,0.04799484,137.44,137.42,3.35756232]
[1764434432845,3.32799484,137.44,137.42,0.04756232]
[1764434434446,14.12718701,137.43,137.42,0.04756232]
[1764434437654,5.24881901,137.43,137.42,3.35756232]
[1764434443456,3.32799484,137.44,137.42,3.35756232]
[1764434445751,0.04799484,137.44,137.43,3.31]
[1764434445957,10.91530653,137.44,137.43,3.31]
[1764434446354,14.19530653,137.44,137.42,6.59566232]
[1764434446653,3.32799484,137.44,137.42,9.90566232]
[1764434452863,3.32799484,137.44,137.43,2.99]
[1764434453063,14.19282021,137.44,137.43,2.99]
[1764434453261,10.91282021,137.44,137.43,2.99]
[1764434453461,14.10282021,137.44,137.43,2.99]
[1764434454165,5.31329597,137.44,137.43,5.12383973]
[1764434454464,0.04799484,137.44,137.43,5.12383973]
[1764434460564,9.95674101,137.48,137.45,2.99]
[1764434460771,10.80113802,137.47,137.45,2.99]
[1764434460971,5.26496424,137.46,137.45,2.99]
[1764434462075,5.26496424,137.46,137.45,5.12383973]
[1764434462968,5.26496424,137.46,137.44,6.59465112]
[1764434463271,3.19,137.46,137.44,9.58465112]
[1764434464575,13.98342096,137.45,137.44,0.04745112]
[1764434464776,13.98410738,137.45,137.44,0.04745112]
[1764434465776,3.19,137.44,137.39,2.99]
[1764434465982,3.19,137.42,137.39,2.99]
[1764434466860,3.24187683,137.42,137.39,3.03883659]
[1764434471973,0.05187683,137.42,137.39,3.03883659]
[1764434472370,3.24187683,137.42,137.39,3.03883659]
[1764434478970,3.24187683,137.42,137.39,0.04883659]
[1764434480187,3.27,137.41,137.39,0.04883659]
[1764434482089,3.27,137.41,137.39,3.25883659]
[1764434483486,3.03187683,137.42,137.39,3.25883659]
[1764434485789,3.03187683,137.42,137.4,3.28]
[1764434493306,3.03187683,137.42,137.39,9.87813659]
[1764434494505,3.03187683,137.42,137.4,3.28]
[1764434499008,0.05187683,137.42,137.4,3.28]
[1764434499211,0.05187683,137.42,137.41,3.28]
[1764434500202,5.30228018,137.42,137.41,3.28]
[1764434500402,0.05187683,137.42,137.41,3.28]
[1764434508320,5.30445154,137.42,137.41,3.28]
[1764434508524,8.28445154,137.42,137.4,6.549]
[1764434508719,2.98,137.41,137.39,3.32883659]
[1764434513531,3.11187683,137.42,137.39,3.32883659]
[1764434513724,10.79901121,137.41,137.39,3.32883659]
[1764434513924,3.11187683,137.42,137.39,3.32883659]
[1764434514220,10.79901121,137.41,137.39,3.32883659]
[1764434514419,3.11187683,137.42,137.39,3.32883659]
[1764434514718,10.79932515,137.41,137.39,3.32883659]
[1764434514919,3.11187683,137.42,137.39,3.32883659]
[1764434515118,10.79932125,137.41,137.39,3.32883659]
[1764434515318,3.11187683,137.42,137.39,3.32883659]
[1764434515525,10.80059027,137.41,137.39,3.32883659]
[1764434515726,3.11187683,137.42,137.39,3.32883659]
[1764434515927,10.80059027,137.41,137.39,3.32883659]
[1764434516119,3.11187683,137.42,137.39,3.32883659]
[1764434516321,10.80065882,137.41,137.39,3.32883659]
[1764434516522,3.11187683,137.42,137.39,3.32883659]
[1764434516721,10.80072695,137.41,137.39,3.32883659]
[1764434516921,3.11187683,137.42,137.39,3.32883659]
[1764434517129,10.80072695,137.41,137.39,3.32883659]
[1764434517328,3.11187683,137.42,137.39,3.32883659]
[1764434517527,10.80090565,137.41,137.39,3.32883659]
[1764434517728,3.11187683,137.42,137.39,3.32883659]
[1764434518022,13.86090565,137.41,137.39,3.32883659]
[1764434518228,3.06,137.41,137.39,3.32883659]
[1764434521328,0.05187683,137.42,137.39,0.04883659]
[1764434521329,8.31735468,137.4,137.39,0.04883659]
[1764434522932,5.25735468,137.4,137.39,3.34883659]
[1764434524033,8.31735468,137.4,137.39,3.34883659]
[1764434524333,3.06,137.4,137.39,3.34883659]
[1764434524835,8.31796886,137.4,137.39,3.34883659]
[1764434529734,8.31796886,137.4,137.39,0.04883659]
[1764434529934,3.06,137.39,137.35,6.5513]
[1764434530145,3.06,137.37,137.34,3.3]
[1764434530530,3.06,137.37,137.32,3.3]
[1764434530940,3.11133335,137.36,137.34,3.3]
[1764434533431,3.11133335,137.36,137.33,3.3]
[1764434534540,3.11133335,137.36,137.33,3.34776457]
[1764434535627,0.05133335,137.36,137.33,3.34776457]
[1764434535828,0.05133335,137.36,137.35,3.3]
[1764434536034,5.24825163,137.4,137.36,3.3]
[1764434536235,3.06,137.41,137.36,3.3]
[1764434536541,5.2481178,137.4,137.36,3.3]
[1764434536737,3.06,137.41,137.37,3.3]
[1764434536942,0.04983195,137.4,137.39,3.3]
[1764434537138,0.05511792,137.41,137.39,3.3]
[1764434539843,0.05511792,137.41,137.38,3.39028765]
[1764434539844,0.05511792,137.41,137.4,6.56667451]
[1764434540044,8.70740882,137.47,137.41,3.23]
[1764434540240,13.95723921,137.46,137.41,3.23]
[1764434540445,3.23,137.46,137.41,3.23]
[1764434541141,0.04628528,137.45,137.43,3.17]
[1764434543342,3.31628528,137.45,137.42,0.0540813]
[1764434543643,8.51506574,137.44,137.42,0.0540813]
[1764434543847,3.27,137.43,137.42,0.0540813]
[1764434544539,0.04628528,137.45,137.42,3.2240813]
[1764434544745,0.04628528,137.45,137.43,5.30348158]
[1764434549137,0.04628528,137.45,137.44,3.17]
[1764434553445,3.31628528,137.45,137.43,5.30348158]
[1764434555153,3.31628528,137.45,137.43,2.13348158]
[1764434555454,3.31628528,137.45,137.42,3.2240813]
[1764434556648,0.04628528,137.45,137.42,3.2240813]
[1764434557853,0.04628528,137.45,137.44,3.17]
[1764434572867,3.13628528,137.45,137.42,3.3340813]
[1764434577169,5.26976686,137.45,137.42,0.0540813]
[1764434577470,3.09,137.44,137.42,0.0540813]
[1764434581666,5.22348158,137.43,137.42,0.0540813]
[1764434582072,10.46578745,137.43,137.42,0.0540813]
[1764434582768,3.09,137.42,137.36,9.831]
[1764434582970,3.09,137.39,137.33,3.28]
[1764434583162,3.09,137.39,137.34,2.13348158]
[1764434583571,3.09,137.39,137.35,3.28]
[1764434583762,3.09,137.39,137.36,3.3313255]
[1764434583763,0.05346805,137.38,137.36,3.3313255]
[1764434590263,0.05346805,137.38,137.36,9.8821255]
[1764434590573,0.05346805,137.38,137.37,3.28]
[1764434616484,3.14346805,137.38,137.37,3.28]
[1764434616781,0.05346805,137.38,137.37,3.28]
[1764434624281,5.314561,137.38,137.37,3.28]
[1764434631402,6.76830111,137.41,137.38,3.02]
[1764434631701,10.77055952,137.4,137.37,3.02]
[1764434631914,5.50175061,137.39,137.37,3.02]
[1764434632093,3.28,137.4,137.37,3.02]
[1764434632494,3.33357667,137.4,137.37,3.06804886]
[1764434639211,3.33357667,137.4,137.38,3.02]
[1764434640714,3.33357667,137.4,137.37,9.61844886]
[1764434641502,3.33357667,137.4,137.37,6.59844886]
[1764434641911,3.33357667,137.4,137.37,0.04804886]
[1764434643211,3.28,137.38,137.37,0.04804886]
[1764434643413,8.521635,137.38,137.37,0.04804886]
[1764434649219,0.05357667,137.4,137.38,3.02]
[1764434649518,0.05357667,137.4,137.39,3.02]
[1764434649922,5.2948092,137.4,137.39,3.02]
[1764434651319,0.05357667,137.4,137.39,3.02]
[1764434657619,0.05357667,137.4,137.37,3.38522438]
[1764434657620,3.33357667,137.4,137.37,3.38522438]
[1764434657824,3.33357667,137.4,137.37,3.06804886]
[1764434659719,3.33357667,137.4,137.37,0.04804886]
[1764434660225,3.09,137.38,137.37,0.04804886]
[1764434671429,3.14357667,137.4,137.37,3.30804886]
[1764434678938,3.14357667,137.4,137.37,0.04804886]
[1764434683351,3.09,137.38,137.37,0.04804886]
[1764434683649,8.24483413,137.38,137.37,0.04804886]
[1764434687864,3.09,137.38,137.37,0.04804886]
[1764434689067,3.09,137.38,137.37,3.16804886]
[1764434689262,3.09,137.38,137.37,0.04804886]
[1764434695365,8.24376041,137.38,137.37,0.04804886]
[1764434701060,13.6399191,137.38,137.37,0.04804886]
[1764434701262,3.01,137.37,137.32,3.12]
[1764434701568,12.68581837,137.38,137.32,3.12]
[1764434701569,3.01,137.35,137.32,3.12]
[1764434702162,3.06192603,137.35,137.32,3.17091511]
[1764434705966,0.05192603,137.35,137.33,3.12]
[1764434709272,3.06192603,137.35,137.33,3.12]
[1764434722473,0.05192603,137.35,137.33,3.12]
[1764434724084,0.05192603,137.35,137.33,9.6723]
[1764434724686,0.05192603,137.35,137.34,3.02]
[1764434727899,3.36192603,137.35,137.33,6.5523]
[1764434728091,3.36192603,137.35,137.33,9.5723]
[1764434728495,3.36192603,137.35,137.34,3.02]
[1764434728884,3.36192603,137.35,137.33,6.5523]
[1764434729085,3.36192603,137.35,137.32,3.07091511]
[1764434731494,3.31,137.33,137.28,3.02]
[1764434732296,3.31,137.33,137.29,3.02]
[1764434732501,0.04998272,137.32,137.31,3.02]
[1764434734497,3.35998272,137.32,137.31,3.02]
[1764434734696,3.35998272,137.32,137.3,3.06797158]
[1764434735002,3.35998272,137.32,137.3,0.04797158]
[1764434753509,3.35998272,137.32,137.27,3.33833474]
[1764434753712,3.35998272,137.32,137.28,3.25]
[1764434754610,3.35998272,137.32,137.29,0.05138804]
[1764434754811,3.35998272,137.32,137.29,3.30138804]
[1764434757406,3.35998272,137.32,137.29,9.85548804]
[1764434758412,3.35998272,137.32,137.29,13.19382278]
[1764434766916,3.35998272,137.32,137.29,9.85548804]
[1764434768709,3.35998272,137.32,137.29,0.05138804]
[1764434769120,3.35998272,137.32,137.29,3.30138804]
[1764434770122,3.35998272,137.32,137.29,0.05138804]
[1764434771924,3.35998272,137.32,137.29,3.30138804]
[1764434772222,3.35998272,137.32,137.29,0.05138804]
[1764434773421,3.09,137.3,137.29,0.05138804]
[1764434773622,3.09,137.29,137.25,3.25]
[1764434774614,3.14204195,137.28,137.26,0.05601993]
[1764434775317,3.14204195,137.28,137.26,3.30601993]
[1764434779827,3.14204195,137.28,137.27,2.99]
[1764434780927,0.05204195,137.28,137.27,2.99]
[1764434783727,2.99,137.32,137.27,2.99]
[1764434783930,8.16551662,137.31,137.29,3.26]
[1764434784227,2.99,137.31,137.29,3.26]
[1764434784723,0.04847328,137.31,137.29,3.31255129]
[1764434785319,9.75830111,137.35,137.31,3.26]
[1764434785528,10.54284032,137.34,137.33,3.26]
[1764434785924,13.53284032,137.34,137.33,3.26]
[1764434786122,13.53284032,137.34,137.32,6.59833474]
[1764434786322,5.17647643,137.33,137.32,6.59833474]
[1764434786522,5.17647643,137.33,137.32,6.65041336]
[1764434788626,5.17647643,137.33,137.32,5.44883854]
[1764434792232,8.16647643,137.33,137.32,5.44883854]
[1764434798943,5.17647643,137.33,137.32,5.44883854]
[1764434799441,0.04717871,137.34,137.33,3.26]
[1764434799640,5.2247526,137.34,137.33,3.26]